Cogmind - Beta 13 @@@ ROGUE MODE // 2024.05.05 @ 23:25:51 Player: Toa of Guts Result: Destroyed by Y-45 Defender with Heavy Assault Rifle Performance ------------- Evolutions (0) 0 Regions Visited (2) 400 Robots Destroyed (30) 150 Value Destroyed (841) 841 Prototype IDs (6) 120 Alien Tech Used (0) 0 Bonus (0) 0 TOTAL SCORE: 1511 Bonus ------- None Cogmind --------- Core Integrity 0/250 Matter 162/300 Energy 199/200 System Corruption 1% Temperature Cool (9) Movement Rolling (100) Location -10/Subcaves Parts ------- > --- POWER (1) -------- Subdweller Power Source > --- PROPULSION (2) --- Light Treads Compact Wheel > --- UTILITY (2) ------ (None) > --- WEAPON (2) ------- Subdweller Machine Gun > --- INVENTORY (5) ---- Ion Engine Myomer Leg Seismic Detector Grenade Launcher Scrap Shield Fragment (47) Peak State ------------ > --- POWER ------------ Subdweller Power Source > --- PROPULSION ------- Light Treads Compact Wheel > --- UTILITY ---------- Scrap Shield > --- WEAPON ----------- Subdweller Machine Gun Barrage Gun > --- INVENTORY -------- Ion Engine Myomer Leg Structural Scanner Seismic Detector Grenade Launcher [Rating: 14] Favorites ----------- Power Ion Engine Engine Ion Engine Propulsion Light Treads Treads Light Treads Leg Aluminum Leg Wheel Compact Wheel Utility Large Storage Unit Device Seismic Detector Storage Large Storage Unit Processor Signal Interpreter Protection Scrap Shield Weapon Assault Rifle Energy Gun EM Pulse Gun Ballistic Gun Assault Rifle Launcher Grenade Launcher Build | -11 -10 -10 ------- Run | Yrd Mat Sub Slots Evolved . | . . . Power . | . . . Propulsion . | . . . Utility . | . . . Weapon . | . . . Parts Attached 39 | 7 15 17 Power 6 | 1 1 4 Engine 6 | 1 1 4 Core . | . . . Reactor . | . . . Propulsion 10 | 2 5 3 Treads 5 | . 4 1 Leg 3 | 2 1 . Wheel 2 | . . 2 Hover . | . . . Flight . | . . . Utility 6 | 1 3 2 Device 1 | . . 1 Storage 3 | 1 2 . Processor 1 | . 1 . Hackware . | . . . Protection 1 | . . 1 Artifact . | . . . Weapon 17 | 3 6 8 Energy Gun 1 | 1 . . Energy Cannon . | . . . Ballistic Gun 13 | 2 4 7 Ballistic Cannon . | . . . Launcher 3 | . 2 1 Special Weapon . | . . . Impact Weapon . | . . . Slashing Weapon . | . . . Piercing Weapon . | . . . Special Melee Weapon . | . . . Unidentified Prototypes . | . . . Parts Lost 5 | . 1 4 Power 2 | . 1 1 Propulsion . | . . . Utility 1 | . . 1 Weapon 2 | . . 2 Highest Loss Streak 1 | . 1 1 To Critical Strikes . | . . . Average Slot Usage (%) 91 | . 92 90 Engine 13 | . 13 13 Treads 14 | . 13 14 Leg 8 | . 14 . Wheel 5 | . . 13 Device 2 | . . 5 Storage 10 | . 14 6 Processor 5 | . 8 . Protection 2 | . . 6 Ballistic Gun 26 | . 26 26 Naked Turns . | . . . Heaviest Build 32 | 14 29 32 Greatest Support 40 | 20 40 40 Greatest Overweight (x) 4 | 4 1 1 Average Overweight (x) . | 1 . . Largest Inventory Capacity 15 | 8 15 15 Average Capacity 11 | 7 12 9 Most Carried 15 | 6 15 15 Average Carried 10 | 3 11 9 Final Capacity 15 | 8 15 5 Final Carried 14 | 6 14 5 Class Distribution -------------------- 66% | Mutant 20% | Subdweller-Mutant 12% | Scavenger-Mutant Dominant Class ---------------- Mutant | -10/Materials Subdweller-Mutant | -10/Subcaves Resources | -11 -10 -10 ----------- Run | Yrd Mat Sub Matter Collected 1031 | 227 486 318 Remotely . | . . . Salvage Created 872 | . 525 347 Parts 60 | . 36 24 Haulers Intercepted . | . . . Recyclers Shooed 1 | . 1 . Parts Field Recycled . | . . . Retrieved Matter . | . . . Parts Self-Destructed 8 | . . 8 Prevented . | . . . Kills | -11 -10 -10 ------- Run | Yrd Mat Sub Combat Hostiles Destroyed 25 | . 13 12 Guns 17 | . 10 7 AOE 8 | . 3 5 Classes Destroyed 7 | . 5 2 Recycler 1 | . 1 . Operator 1 | . 1 . Turret 2 | . . 2 Watcher 1 | . 1 . Swarmer 7 | . 3 4 Grunt 10 | . 10 . Subdweller 8 | . . 8 Best Kill Streak 7 | . 7 6 Combat Bots Only 6 | . 3 6 Max Kills in Single Turn 2 | . 2 2 Gunslinging 1 | . . 1 Exploded 2 | . 2 2 Melee . | . . . Uniques/NPCs Destroyed . | . . . Combat | -11 -10 -10 -------- Run | Yrd Mat Sub Hostile Shots Fired 192 | . 66 126 Missed 59 | . 21 38 Damage Taken 1514 | . 493 1021 Core 260 | . 124 136 Absorbed by Shields . | . . . Core Remaining (%) 100 | 100 . . Volleys Fired 100 | . 53 47 Largest 2 | . 2 2 Hottest 58 | . 40 58 Shots Fired 171 | . 97 74 Gun 165 | . 95 70 Cannon . | . . . Launcher 6 | . 2 4 Special . | . . . Kinetic 165 | . 95 70 Thermal . | . . . Explosive 6 | . 2 4 Electromagnetic . | . . . Robot Hit Streak 20 | . 8 20 Robot Miss Streak 4 | . 4 2 Penetration Max . | . . . Secondary Targets 1 | . . 1 Max Gunslinging Chain 1 | . . 1 Shots Hit Robots 114 | . 58 56 Core Hits 53 | . 30 23 Critical Kills 1 | . . 1 Critical Parts Destroyed 1 | . . 1 Critical Strikes 2 | . . 2 Destroy 2 | . . 2 Melee Attacks . | . . . Impact . | . . . Slashing . | . . . Piercing . | . . . Sneak Attacks . | . . . Combat Hostiles . | . . . Follow-up Attacks . | . . . Damage Inflicted 2417 | . 882 1535 Guns 1515 | . 695 820 Cannons . | . . . Explosions 902 | . 187 715 Melee . | . . . Ramming . | . . . Kinetic 1515 | . 695 820 Thermal . | . . . Explosive 902 | . 187 715 Electromagnetic . | . . . Impact . | . . . Slashing . | . . . Piercing . | . . . Highest Corruption 1 | . 1 1 Average Corruption 1 | . 1 1 Corruption Purged . | . . . Corruption Blocked . | . . . Effects 8 | . 4 4 Message Errors 3 | . 1 2 Heat Flow Errors 2 | . 1 1 Parts Rejected 1 | . . 1 Data Loss (minor) 1 | . 1 . Misfires 1 | . 1 . Overload Shots . | . . . Overflow Damage . | . . . Projectiles . | . . . Explosions . | . . . Melee . | . . . Knockbacks . | . . . Impact . | . . . Kinetic . | . . . Secondary . | . . . Self-Inflicted Damage . | . . . Shots . | . . . Rammed . | . . . Targets Rammed . | . . . Kicked . | . . . Crushed . | . . . Highest Temperature 168 | . 168 130 Average Temperature 51 | . 58 29 Received Heat Transfer 618 | . 231 387 Siege Activations . | . . . Robots Corrupted . | . . . Combat Hostiles . | . . . Parts Fried . | . . . Impact Corruptions . | . . . Robots Melted . | . . . Combat Hostiles . | . . . Parts Melted . | . . . Heat Transferred . | . . . Parts Sabotaged . | . . . Parts Stolen . | . . . Parts Stripped . | . . . Power Chain Reactions . | . . . Alert | -11 -10 -10 ------- Run | Yrd Mat Sub Peak Influence 242 | . 242 . Initial . | . . . Average 55 | . 58 . Maximum Alert Level 1 | . 1 . Low Security (%) 96 | 100 96 . Level 1 3 | . 3 . Level 2 . | . . . Level 3 . | . . . Level 4 . | . . . Level 5 . | . . . High Security . | . . . Max Security . | . . . Squads Dispatched 3 | . 3 . Investigation 1 | . 1 . Extermination . | . . . Reinforcement 2 | . 2 . Assault . | . . . Garrison . | . . . Intercept . | . . . Searches Triggered . | . . . Construction Impeded . | . . . Haulers Reinforced . | . . . Active Scanning Responses . | . . . Cargo Convoy Interrupts . | . . . Stealth | -11 -10 -10 --------- Run | Yrd Mat Sub Distress Signals 3 | . 3 . Communications Jammed . | . . . Distress Signals . | . . . Times Spotted 87 | . 27 60 Peak Tracking Total 6 | . 5 6 Tactical Retreats 6 | . 1 5 Traps | -11 -10 -10 ------- Run | Yrd Mat Sub Traps Triggered 4 | . 4 . Indirectly . | . . . Trap Hack Attempts . | . . . Triggered . | . . . Disarmed . | . . . Reprogrammed . | . . . Reused . | . . . Traps Extracted . | . . . Installed . | . . . Triggered . | . . . Machines | -11 -10 -10 ---------- Run | Yrd Mat Sub Machines Disabled 2 | . . 2 Max in Single Turn 1 | . . 1 Machines Repaired . | . . . Machines Dismantled . | . . . Machines Sabotaged . | . . . Overloaded Fab Kills . | . . . Hacking | -11 -10 -10 --------- Run | Yrd Mat Sub Machines Accessed 6 | . 5 1 Terminals 5 | . 5 . Fabricators . | . . . Repair Stations . | . . . Recycling Units . | . . . Scanalyzers . | . . . Garrison Access . | . . . Total Hacks 16 | . 13 3 Successful 9 | . 6 3 Failed 7 | . 7 . Catastrophic 1 | . 1 . Database Lockouts . | . . . Manual . | . . . Terminals 13 | . 13 . Fabricators . | . . . Repair Stations . | . . . Recycling Units . | . . . Scanalyzers . | . . . Garrison Access . | . . . Terminal Hacks 9 | . 6 3 Record 3 | . . 3 Prototype ID Bank 2 | . 2 . Unreport Threat 1 | . 1 . Locate Traps 1 | . 1 . Registered Components 1 | . 1 . Zone Layout 1 | . 1 . Fabricator Hacks . | . . . Repair Station Hacks . | . . . Recycling Unit Hacks . | . . . Scanalyzer . | . . . Garrison Access Hacks . | . . . Unauthorized Hacks . | . . . Terminals . | . . . Fabricators . | . . . Repair Stations . | . . . Recycling Units . | . . . Scanalyzers . | . . . Garrison Access . | . . . Data Cores Recovered . | . . . Used . | . . . Hacking Detections 5 | . 5 . Full Trace Events . | . . . Feedback Events . | . . . Feedback Blocked . | . . . Robot Schematics Acquired . | . . . Robots Built . | . . . Authchips . | . . . Time . | . . . Total Robot Build Rating . | . . . Part Schematics Acquired . | . . . Parts Built . | . . . Authchips . | . . . Time . | . . . Total Part Build Rating . | . . . Parts Repaired . | . . . Time . | . . . Parts Recycled . | . . . Recycled Matter . | . . . Retrieved Matter . | . . . Retrieved Components . | . . . Parts Scanalyzed . | . . . Part Schematics Acquired . | . . . Parts Damaged . | . . . Bothacking | -11 -10 -10 ------------ Run | Yrd Mat Sub Used RIF Installer . | . . . Robots Hacked . | . . . Non-combat . | . . . Combat . | . . . Robot Hacks Applied . | . . . Relay Couplers Released . | . . . Fabnet Peak Effective % . | . . . Robots Rewired . | . . . Allies Hacked . | . . . Hacks Repelled . | . . . Allies | -11 -10 -10 -------- Run | Yrd Mat Sub Total Allies . | . . . Largest Group . | . . . Highest-Rated Group . | . . . Highest-Rated Ally . | . . . Total Orders . | . . . Ally Attacks . | . . . Total Damage . | . . . Kills . | . . . Allies Corrupted . | . . . Allies Melted . | . . . Intel | -11 -10 -10 ------- Run | Yrd Mat Sub Robot Analysis Total . | . . . Derelict Logs Recovered 1 | . . 1 Drone Launches . | . . . Drone Recoveries . | . . . Exploration | -11 -10 -10 ------------- Run | Yrd Mat Sub Turns Passed 2437 | 64 1371 1002 Spaces Moved 1379 | 35 737 607 Core 17 | 17 . . Treads 376 | . 369 7 Legs 386 | 18 368 . Wheels 600 | . . 600 Hover . | . . . Flight . | . . . Fastest Speed 50 | 50 120 100 Average Speed 129 | 138 140 116 Slowest Speed 250 | 250 240 160 Overloaded Moves . | . . . Propulsion Burnouts . | . . . Robots Hopped . | . . . Cave-ins Triggered . | . . . Exploration Rate (%) 43 | 4 89 36 Regions Visited 2 Branch Regions 1 Pre-discovered Areas . | . . . Known Exits Taken 1 | . 1 . Unknown Exits Taken 1 | 1 . . Scrap Searched 2 | . . 2 Spaces Dug . | . . . Terrain Destroyed 14 | . 8 6 Melee . | . . . Projectile . | . . . AOE 14 | . 8 6 Terrain Rammed . | . . . Walls Destroyed . | . . . Machines Disabled . | . . . Actions | -11 -10 -10 --------- Run | Yrd Mat Sub Total 1865 | 47 979 839 Wait 290 | . 151 139 Move 1377 | 34 736 607 Hop . | . . . Pick Up 29 | 5 17 7 Fast Attach 15 | 7 4 4 Attach 6 | . 4 2 Detach 2 | 1 . 1 Swap 18 | . 7 11 Drop 27 | . 7 20 Fire 100 | . 53 47 Melee . | . . . Ram . | . . . Kick . | . . . Crush . | . . . Escape Stasis . | . . . Rewire . | . . . Trap . | . . . Miscellaneous 1 | . . 1 Route ------- -11/Scrapyard -10/Materials (discovered 5 exits: *Mat x3 / [*Min] / *Sub) -10/Subcaves (discovered 1 exit: [*Rec]) History --------- Turn | Location | Event 19 | -11/Scrapyard | Discovered new exit (range 15) 65 | -11/Scrapyard | Entered Materials 231 | -10/Materials | Discovered new exit (range 7) 311 | -10/Materials | Build established: Mutant 623 | -10/Materials | Discovered new exit (range 3) 624 | -10/Materials | Identified exit to Materials 891 | -10/Materials | Discovered exit to Materials (range 4) 948 | -10/Materials | Discovered new exit (range 10) 963 | -10/Materials | Identified exit to Subcaves 1073 | -10/Materials | Discovered exit to Materials (range 11) 1436 | -10/Materials | Entered Subcaves 1438 | -10/Subcaves | Ambushed by Subdwellers from Twisted Machinery 1462 | -10/Subcaves | Core integrity fell below 50% 1773 | -10/Subcaves | Visited Clippyterm 1781 | -10/Subcaves | Ambushed by swarm of Subdwellers 1784 | -10/Subcaves | Build established: Scavenger-Mutant 1803 | -10/Subcaves | Core integrity fell below 20% 2183 | -10/Subcaves | Build established: Subdweller-Mutant 2354 | -10/Subcaves | Discovered new exit (range 8) 2438 | -10/Subcaves | Destroyed by Y-45 Defender with Heavy Assault Rifle Last Messages --------------- 02319_ Flight Unit fries itself beyond repair. 02320_ Acquired 10 matter. 02321_ Lgt. Assault Rifle fries itself beyond repair. 02324_ Flight Unit fries itself beyond repair. 02328_ XABVA78GZML ISLMQB% 02354_ EXIT=FOUND 02356_ Machine disabled. 02368_ Destroyed Autobeam. 02370_ Autobeam Turret suffers critical hit (Destroy). 02370_ Autobeam Turret destroyed. 02373_ Scrap Shield destroyed. 02374_ System corrupted: Barrage Gun rejected. 02377_ Subatomizers dissect the Barrage Gun. 02378_ Autobeam Turret suffers critical hit (Destroy). 02378_ Destroyed Autobeam. 02384_ Autobeam Turret destroyed. 02386_ Acquired Barrage Gun. 02391_ Acquired 15 matter. 02394_ Acquired 19 matter. 02435_ Barrage Gun destroyed. Map ----- +----------------------------------------------------+ | ?????????????????????????????????????????????????? | | ?????????????????????????????????????????????????? | | ?????????????????????????????????????????????????? | | ?????????????????????????? #?????????????????????? | | ????????????????????????? ?????????????????????? | | ?????????????????????????# ????????????????????? | | ?????????????????????????# ?????????????????????? | | ????????????????????????## ?????????????????????? | | ???????????????????????## ???????????###???????? | | ???????????????###????## ??????????% ??????? | | ??????????????## ##### ##??????? ??????? | | ?????????????## #?????? ??????? | | ?????????????# #??##? ???????? | | ?????????????# ## ### ## ????????? | | ??????????????# ## & ??????????? | | ???????????????# ## = #????????????? | | ???????????????# #?# !*##???????????? | | ????????????????# ##?# #???????????? | | ??????????????????# ### #???????????? | | ????????????######### ### #???????????? | | ????????????#""" "## ##? #???????????? | | ????????????# ## ##?? #???????????? | | ????????????#" ## #?? #???????????# | | ???????????## ##?? %#####??????????? | | ???????????#< #### #??????????????? | | ???????????##"" Y@ #######?????????????? | | ????????????# # #??????????????????? | | ????????????# # ###?????????????????? | | ????????????#""" "# #####???????????????????? | | ????????????######## ####??????????????????????? | | ???????????????????## #??????????????????????? | | ????????????????????## ##??????????????????????? | | ????????????????????## ##???????????????????????? | | ????????????????????# ##???????????????????????? | | ????????????????????# ##??????????????????????? | | ????????????????????# ##?????????????????????? | | ???###??????????????# #????????????????????#? | | ??## ###?????????#### #???????????????????# ? | | ??# ##???????## #??????????????????? | | ??### #####???# ##??????????????????? | | ????## #???### #???????????????????? | | ?????# ##?????## #????????????????????# | | ?????## ####????# #????????????????????# | | ??????### ## ##???# #????????????????????# | | ????????# ###### ##????????????????????# | | ????????# ## ### #???????????????????# ? | | ????????# ## ##??????????????????#??? | | ????????# ## # ##????????????????????? | | ????????# ### ## ##???????????????????? | | ????????# ### ### ## #???????????????????? | +----------------------------------------------------+ Best States ------------- Heat Dissipation 25 Energy Generation 15 Energy Capacity 250 Matter Stores 300 Matter Capacity 300 Sight Range 16 Terrain Scan Density 10 Armor Coverage 800 Evasion (%) 55 Recoil Reduction 2 Item Schematics ----------------- None Robot Schematics ------------------ None Fabricated ------------ Nothing Alien Tech Used ----------------- None Achievements -------------- None Challenges ------------ None Game ------ Seed MasterThrusterWings Manual? 0 Play Time 00:34:26 Cumulative 112.0 hours Start 2024.05.05 @ 22:43:09 End 2024.05.05 @ 23:25:51 Sessions 1 Manual Loads 0 Difficulty Rogue Special Mode None Game No. 72 Rogue 72 Adventurer 0 Explorer 0 Win Type - Total 2 Types 2/0/0/0/0/0/0/0/0 Lore% 38 Gallery% 50 Achievement% 32 Wizard Run 0 Options --------- Layout 0 ASCII 0 Keyboard 0 Movement Mouse Keybinds 0 Fullscreen 1 Font 24/X11 Map View 76x50 Zoom Use 0% Tactical HUD 1 Map Filters NONE Filters NONE Steam 1 RUN: 938f396d-745f-48dc-84fe-bc57bb6245e4